bitfinex-derivatives/quotes_BTCF0:USTF0_20250101
["timestamp","ask_amount","ask_price","bid_price","bid_amount"]
[1735742911780,0.053152,94253.0,94252.0,0.36239143]
[1735742912077,0.053152,94253.0,94225.0,0.2543907]
[1735742912078,0.053152,94252.0,94240.0,0.01061434]
[1735742912279,0.053165,94230.0,94229.0,0.3608]
[1735742912471,0.053165,94230.0,94229.0,0.37220923]
[1735742912779,0.05317,94221.0,94220.0,0.2543907]
[1735742912973,0.05317,94221.0,94220.0,0.26580035]
[1735742913272,0.05317,94221.0,94220.0,0.2543907]
[1735742913467,0.15930401,94221.0,94220.0,0.26560369]
[1735742913672,0.15630401,94221.0,94220.0,0.01121299]
[1735742914180,0.053173,94216.0,94215.0,0.3608]
[1735742914570,0.053173,94216.0,94215.0,0.37145641]
[1735742914872,0.15630701,94216.0,94215.0,0.37145641]
[1735742915270,0.15030701,94216.0,94215.0,0.37145641]
[1735742915872,0.15030701,94216.0,94215.0,0.37945641]
[1735742916672,0.15030701,94216.0,94215.0,0.38345641]
[1735742917872,0.15030701,94216.0,94215.0,0.3228]
[1735742918079,0.053176,94210.0,94208.0,0.00159216]
[1735742918778,0.10613964,94209.0,94208.0,0.00159216]
[1735742919385,0.10613964,94209.0,94208.0,0.01059216]
[1735742919687,0.10613964,94209.0,94208.0,0.01459216]
[1735742920071,0.10713964,94209.0,94208.0,0.01459216]
[1735742920475,0.10713964,94209.0,94208.0,0.009]
[1735742920785,0.053187,94192.0,94190.0,0.3608]
[1735742921485,0.10616725,94191.0,94190.0,0.3608]
[1735742922077,0.053183,94199.0,94190.0,0.3608]
[1735742922491,0.10616781,94191.0,94190.0,0.3608]
[1735742922683,0.053183,94199.0,94190.0,0.3608]
[1735742922883,0.053183,94199.0,94190.0,0.3648]
[1735742923088,0.10716781,94191.0,94190.0,0.3658]
[1735742923381,0.001,94191.0,94190.0,0.3658]
[1735742923586,0.10616331,94191.0,94190.0,0.3618]
[1735742923781,0.10616331,94191.0,94190.0,0.3658]
[1735742923979,0.001,94199.0,94190.0,0.3658]
[1735742924188,0.053183,94197.0,94190.0,0.3658]
[1735742924384,0.053183,94197.0,94190.0,0.3158]
[1735742924685,0.053183,94197.0,94190.0,0.368987]
[1735742924887,0.10616331,94196.0,94190.0,0.368987]
[1735742925385,0.10616331,94196.0,94194.0,0.053185]
[1735742925779,0.10865083,94210.0,94194.0,0.053185]
[1735742925988,0.106165,94195.0,94194.0,0.053185]
[1735742926380,0.053181,94201.0,94195.0,0.053184]
[1735742926582,0.001,94196.0,94195.0,0.053184]
[1735742926778,0.001,94196.0,94193.0,0.3608]
[1735742927080,0.10716331,94196.0,94193.0,0.3608]
[1735742927285,0.10716331,94196.0,94195.0,0.053184]
[1735742927592,0.10616331,94196.0,94195.0,0.053184]
[1735742928090,0.053178,94208.0,94200.0,0.053181]
[1735742928287,0.10616331,94196.0,94195.0,0.053184]
[1735742928482,0.10616331,94196.0,94194.0,0.003]
[1735742928483,0.053178,94208.0,94194.0,0.003]
[1735742928877,0.0502,94219.0,94202.0,0.3608]
[1735742929081,0.3608,94218.0,94209.0,0.053176]
[1735742929286,0.053172,94217.0,94210.0,0.053176]
[1735742929477,0.3608,94218.0,94202.0,0.3608]
[1735742929677,0.3608,94218.0,94210.0,0.413976]
[1735742930488,0.00359285,94211.0,94210.0,0.413976]
[1735742930687,0.10973813,94211.0,94210.0,0.413976]
[1735742931980,0.10973813,94211.0,94210.0,0.3608]
[1735742932187,0.16291313,94211.0,94210.0,0.3608]
[1735742932585,0.10973813,94211.0,94210.0,0.3608]
[1735742933187,0.10973813,94211.0,94210.0,0.413976]
[1735742934389,0.10973813,94211.0,94210.0,0.363976]
[1735742936592,0.16291313,94211.0,94210.0,0.3108]
[1735742936894,0.05318,94203.0,94202.0,0.3608]
[1735742937512,0.15933429,94203.0,94202.0,0.3608]
[1735742937995,0.15933429,94203.0,94202.0,0.3108]
[1735742938196,0.053181,94201.0,94185.0,0.05319]
[1735742938399,0.413987,94191.0,94186.0,0.053189]
[1735742938594,0.413987,94191.0,94187.0,0.053189]
[1735742938791,0.15834129,94190.0,94183.0,0.42281361]
[1735742938990,0.051188,94189.0,94185.0,0.05319]
[1735742939496,0.051188,94189.0,94185.0,0.05419]
[1735742939700,0.10617176,94188.0,94185.0,0.001]
[1735742939893,0.10617176,94188.0,94187.0,0.005]
[1735742940089,0.3608,94191.0,94187.0,0.005]
[1735742940291,0.10617176,94188.0,94187.0,0.005]
[1735742940595,0.3608,94191.0,94187.0,0.005]
[1735742940796,0.01330001,98397.0,94188.0,0.053188]
[1735742940797,0.001,94189.0,94188.0,0.053188]
[1735742941397,0.1071712,94189.0,94188.0,0.053188]
[1735742942295,0.1081712,94189.0,94188.0,0.003188]
[1735742942492,0.1081712,94189.0,94185.0,0.006]
[1735742942693,0.1081712,94189.0,94185.0,0.005]
[1735742942889,0.1071712,94189.0,94188.0,0.053188]
[1735742943802,0.1061712,94189.0,94188.0,0.057188]
[1735742944297,0.001,94191.0,94190.0,0.053187]
[1735742944697,0.001,94191.0,94190.0,1.553187]
[1735742944896,0.10717007,94191.0,94190.0,0.053187]
[1735742945092,0.10617007,94191.0,94190.0,0.053187]
[1735742945597,0.05318,94204.0,94199.0,0.053182]
[1735742945794,0.3608,94213.0,94191.0,0.3608]
[1735742945995,0.3608,94213.0,94209.0,0.053176]
[1735742946303,0.10616781,94210.0,94209.0,0.003176]
[1735742946505,0.10616781,94210.0,94206.0,0.053178]
[1735742947101,0.10616781,94210.0,94201.0,0.0942]
[1735742947999,0.10616781,94210.0,94208.0,0.053177]
[1735742948806,0.10616781,94210.0,94209.0,0.053177]
[1735742949501,0.15934381,94210.0,94206.0,0.001]
[1735742949703,0.15934381,94210.0,94206.0,0.054178]
[1735742950305,0.10616781,94210.0,94209.0,0.053177]
[1735742950703,0.10616781,94210.0,94206.0,0.001]
[1735742951007,0.10616781,94210.0,94209.0,0.053177]
[1735742952207,0.053177,94209.0,94206.0,0.001]
[1735742952604,0.053177,94209.0,94204.0,0.06017713]
[1735742952808,0.1061464,94208.0,94204.0,0.06017713]
[1735742953306,0.1061464,94208.0,94205.0,0.053178]
[1735742954502,0.1061464,94208.0,94191.0,0.4097]
[1735742954503,0.1061464,94208.0,94207.0,0.053178]
[1735742955099,0.1061464,94208.0,94206.0,0.001]
[1735742955100,0.00159285,94211.0,94208.0,0.053177]
[1735742955502,0.3608,94238.0,94217.0,0.053172]
[1735742955701,0.053161,94237.0,94224.0,0.3608]
[1735742955903,0.053161,94237.0,94233.0,0.053163]
[1735742956104,0.1061464,94236.0,94233.0,0.053163]
[1735742956797,0.004,94238.0,94233.0,0.053163]
[1735742957002,0.004,94238.0,94229.0,0.053165]
[1735742957003,0.053163,94233.0,94229.0,0.053165]
[1735742957198,0.004,94238.0,94218.0,0.0972]
[1735742957199,0.3608,94230.0,94218.0,0.0483]
[1735742957405,0.413965,94230.0,94228.0,0.053166]
[1735742957600,0.413965,94230.0,94229.0,0.053165]
[1735742957802,0.053162,94235.0,94220.0,0.10865083]
[1735742958115,0.053163,94234.0,94231.0,0.053164]
[1735742958310,0.15928518,94234.0,94231.0,0.053164]
[1735742958614,0.053163,94234.0,94231.0,0.053164]
[1735742958907,0.15928349,94233.0,94231.0,0.053164]
[1735742959310,0.053163,94233.0,94231.0,0.053164]
[1735742959512,0.10612106,94232.0,94231.0,0.053164]
[1735742959813,0.15928506,94232.0,94231.0,0.053164]
[1735742960316,0.053164,94232.0,94231.0,0.053164]
[1735742960611,0.15928506,94232.0,94231.0,0.053164]
[1735742960805,0.16828506,94232.0,94231.0,0.053164]
[1735742961609,0.17228506,94232.0,94231.0,0.053164]
[1735742962200,0.17228506,94232.0,94218.0,0.05506896]
[1735742962201,0.053171,94219.0,94218.0,0.05993996]
[1735742962405,0.053167,94226.0,94223.0,0.053168]
[1735742962605,0.053168,94224.0,94223.0,0.053168]
[1735742964107,0.15929863,94224.0,94223.0,0.053168]
[1735742964807,0.16229863,94224.0,94223.0,0.053168]
[1735742965615,0.16229863,94224.0,94223.0,0.06018528]
[1735742966015,0.11613063,94224.0,94223.0,0.06018528]
[1735742967310,0.16929863,94224.0,94223.0,0.00701728]
[1735742967506,0.053169,94223.0,94219.0,0.413971]
[1735742968206,0.10613063,94222.0,94219.0,0.3608]
[1735742968406,0.053173,94215.0,94214.0,0.053174]
[1735742968612,0.053173,94215.0,94214.0,0.06006079]
[1735742968922,0.15930645,94215.0,94214.0,0.06006079]
[1735742969217,0.10613345,94215.0,94214.0,0.06006079]
[1735742969719,0.053171,94220.0,94215.0,0.053173]
[1735742970018,0.06554658,94564.0,94215.0,0.053173]
[1735742970019,0.32422293,94228.0,94215.0,0.053173]
[1735742970208,0.10614077,94219.0,94215.0,0.053173]
[1735742970409,0.32422293,94228.0,94215.0,0.053173]
[1735742970608,0.053175,94212.0,94211.0,0.36766123]
[1735742970819,0.053178,94206.0,94205.0,0.00159206]
[1735742971320,0.15931088,94206.0,94205.0,0.00159206]
[1735742972321,0.15931088,94206.0,94184.0,0.0503]
[1735742972521,0.053182,94200.0,94191.0,0.00705465]
[1735742972722,0.053186,94192.0,94185.0,0.05319]
[1735742972911,0.053186,94192.0,94188.0,0.413988]
[1735742973119,0.10615091,94191.0,94189.0,0.053188]
[1735742973421,0.10615091,94191.0,94188.0,0.3608]
[1735742973422,0.10615091,94191.0,94190.0,0.053187]
[1735742973817,0.053185,94194.0,94190.0,0.053187]
[1735742974315,0.10616838,94191.0,94190.0,0.053187]
[1735742974512,0.10716838,94191.0,94190.0,0.058187]
[1735742974714,0.001,94191.0,94190.0,0.058187]
[1735742975524,0.10716612,94191.0,94190.0,0.058187]
[1735742976224,0.10616612,94191.0,94190.0,0.057187]
[1735742976425,0.10616612,94191.0,94190.0,0.053187]
[1735742976620,0.057185,94194.0,94188.0,0.36785879]
[1735742976621,0.005,94194.0,94188.0,0.36785879]
[1735742976924,0.005,94194.0,94193.0,0.053186]
[1735742977115,0.001,94194.0,94193.0,0.053186]
[1735742977316,0.3608,94202.0,94200.0,0.053181]
[1735742977515,0.3608,94202.0,94201.0,0.0504]
[1735742977711,0.37757683,94202.0,94201.0,0.0504]
[1735742978024,0.48374126,94202.0,94201.0,0.0504]
[1735742978522,0.48374126,94202.0,94201.0,0.103581]
[1735742978727,0.48374126,94202.0,94201.0,0.0504]
[1735742979022,0.48374126,94202.0,94201.0,0.05729796]
[1735742979413,0.46696443,94202.0,94201.0,0.05729796]
[1735742979725,0.46796443,94202.0,94201.0,0.11047896]
[1735742979923,0.47096443,94202.0,94201.0,0.11047896]
[1735742980523,0.52614443,94202.0,94201.0,0.06007896]
[1735742980825,0.52614443,94202.0,94201.0,0.053181]
[1735742981021,0.52714443,94202.0,94201.0,0.053181]
[1735742981223,0.52214443,94202.0,94201.0,0.053181]
[1735742981424,0.52614443,94202.0,94201.0,0.053181]
[1735742982929,0.52714443,94202.0,94201.0,0.053181]
[1735742984126,0.52814443,94202.0,94201.0,0.053181]
[1735742986026,0.52214443,94202.0,94201.0,0.053181]
[1735742986331,0.52714443,94202.0,94201.0,0.053181]
[1735742986624,0.47296443,94202.0,94201.0,0.053181]
[1735742986832,0.47496443,94202.0,94201.0,0.053181]
[1735742987420,0.46696443,94202.0,94201.0,0.053181]
[1735742987623,0.47296443,94202.0,94201.0,0.053181]
[1735742989230,0.47396443,94202.0,94201.0,0.053181]
[1735742989434,0.52714443,94202.0,94201.0,0.053181]
[1735742989626,0.52114443,94202.0,94201.0,0.053181]
[1735742989818,0.52514443,94202.0,94201.0,0.053181]
[1735742990222,0.52114443,94202.0,94201.0,0.053181]
[1735742990435,0.52714443,94202.0,94201.0,0.053181]
[1735742991931,0.52614443,94202.0,94201.0,0.053181]
[1735742992326,0.52714443,94202.0,94201.0,0.053181]
[1735742992530,0.52214443,94202.0,94201.0,0.053181]
[1735742992722,0.52814443,94202.0,94201.0,0.053181]
[1735742992919,0.47296443,94202.0,94194.0,0.00703455]
[1735742993240,0.47296443,94202.0,94188.0,0.3608]
[1735742993241,0.053185,94194.0,94193.0,0.053185]
[1735742994223,0.15934943,94194.0,94193.0,0.053185]
[1735742995432,0.16434943,94194.0,94193.0,0.053185]
[1735742995631,0.16634943,94194.0,94193.0,0.053185]
[1735742996643,0.16634943,94194.0,94193.0,0.06067822]
[1735742998535,0.16434943,94194.0,94193.0,0.06067822]
[1735742998728,0.16634943,94194.0,94193.0,0.06067822]
[1735742999633,0.16634943,94194.0,94193.0,0.00749322]
[1735742999822,0.053188,94189.0,94188.0,0.413988]
[1735743000433,0.15935243,94189.0,94188.0,0.413988]
[1735743000744,0.17573959,94189.0,94188.0,0.413988]
[1735743001030,0.10616443,94189.0,94188.0,0.4216657]
[1735743001433,0.008,94194.0,94193.0,0.053186]
[1735743002037,0.10617007,94194.0,94193.0,0.053186]
[1735743002440,0.053181,94201.0,94197.0,0.053183]
[1735743002636,0.10616443,94194.0,94191.0,0.053187]
[1735743002936,0.10616443,94194.0,94190.0,0.10865083]
[1735743002937,0.001,94194.0,94190.0,0.10865083]
[1735743003237,0.10616443,94193.0,94191.0,0.053187]
[1735743003434,0.10616443,94193.0,94192.0,0.053186]
[1735743003739,0.002,94194.0,94193.0,0.053186]
[1735743004037,0.054181,94201.0,94196.0,0.053184]
[1735743004239,0.053186,94193.0,94191.0,0.053187]
[1735743004831,0.10616612,94192.0,94191.0,0.053187]
[1735743005638,0.3608,94202.0,94188.0,0.3684777]
[1735743005639,0.053183,94197.0,94188.0,0.3684777]
[1735743005835,0.053183,94197.0,94195.0,0.053184]
[1735743006230,0.10616669,94196.0,94195.0,0.053184]
[1735743006932,0.3608,94202.0,94200.0,0.053182]
[1735743006933,0.053181,94201.0,94200.0,0.053182]
[1735743007132,0.15934318,94201.0,94200.0,0.053182]
[1735743007332,0.053181,94201.0,94200.0,0.053182]
[1735743007535,0.3608,94202.0,94201.0,0.053181]
[1735743007844,0.46695654,94202.0,94201.0,0.053181]
[1735743008628,0.053173,94215.0,94201.0,0.053181]
[1735743008834,0.05536891,94216.0,94215.0,0.053173]
[1735743009230,0.16152433,94216.0,94215.0,0.053173]
[1735743010042,0.16952433,94216.0,94215.0,0.053173]
[1735743010237,0.11415542,94216.0,94215.0,0.053173]
[1735743010936,0.11715542,94216.0,94215.0,0.053173]
[1735743011640,0.12015542,94216.0,94215.0,0.054173]
[1735743012731,0.11515542,94216.0,94215.0,0.06261371]
[1735743012935,0.11115542,94216.0,94215.0,0.06161371]
[1735743013932,0.00919166,94216.0,94215.0,0.06161371]
[1735743014150,0.01319166,94216.0,94215.0,0.06161371]
[1735743014541,0.00919166,94216.0,94215.0,0.06161371]
[1735743014746,0.01319166,94216.0,94215.0,0.06161371]
[1735743015247,0.01419166,94216.0,94215.0,0.06161371]
[1735743015443,0.053157,94244.0,94234.0,0.053162]
[1735743015637,0.3608,94239.0,94225.0,0.46945083]
[1735743015844,0.3608,94239.0,94235.0,0.053162]
[1735743016148,0.10613964,94238.0,94226.0,0.0494]
[1735743016538,0.00159215,94245.0,94235.0,0.3608]
[1735743016738,0.053149,94259.0,94235.0,0.46945083]
[1735743016937,0.10612106,94238.0,94236.0,0.053161]
[1735743017143,0.053149,94259.0,94247.0,0.053155]
[1735743017542,0.10612106,94247.0,94237.0,0.0538]
[1735743017741,0.009,94238.0,94237.0,0.106961]
[1735743018237,0.005,94239.0,94237.0,0.106961]
[1735743018945,0.009,94248.0,94237.0,0.0538]
[1735743019143,0.1111143,94238.0,94237.0,0.106961]
[1735743019343,0.005,94238.0,94237.0,0.053161]
[1735743019741,0.1111143,94238.0,94237.0,0.053161]
[1735743019937,0.1061143,94238.0,94237.0,0.053161]
[1735743021253,0.1151143,94238.0,94237.0,0.053161]
[1735743021846,0.1201143,94238.0,94237.0,0.054161]
[1735743024866,0.1201143,94238.0,94237.0,0.001]
[1735743034361,0.1201143,94238.0,94237.0,0.054161]
[1735743035958,0.014,94238.0,94237.0,0.054161]
[1735743036264,0.102,94258.0,94257.0,0.053149]
[1735743036866,0.20809235,94258.0,94257.0,0.053149]
[1735743037855,0.22609235,94258.0,94257.0,0.055149]
[1735743041371,0.22609235,94258.0,94257.0,0.06358213]
[1735743043868,0.21709235,94258.0,94257.0,0.06258213]
[1735743044075,0.21809235,94258.0,94257.0,0.06258213]
[1735743044276,0.06579426,94258.0,94257.0,0.06258213]
[1735743044462,0.06079426,94258.0,94257.0,0.06158213]
[1735743044669,0.06179426,94258.0,94257.0,0.06158213]
[1735743045074,0.06279426,94258.0,94257.0,0.06158213]
[1735743046981,0.06079426,94258.0,94257.0,0.06158213]
[1735743047275,0.06279426,94258.0,94257.0,0.06158213]
[1735743050086,0.11594326,94258.0,94257.0,0.06158213]
[1735743050983,0.11094326,94258.0,94257.0,0.06158213]
[1735743051188,0.11694326,94258.0,94257.0,0.06258213]
[1735743051591,0.11094326,94258.0,94257.0,0.06158213]
[1735743051787,0.11694326,94258.0,94257.0,0.06258213]
[1735743053082,0.11694326,94258.0,94257.0,0.001]
[1735743054085,0.053151,94254.0,94253.0,0.053152]
[1735743054482,0.06379426,94258.0,94248.0,0.053153]
[1735743054483,0.053155,94249.0,94248.0,0.053153]
[1735743054990,0.15925185,94249.0,94248.0,0.06175128]
[1735743055993,0.16525185,94249.0,94248.0,0.06275128]
[1735743056989,0.16725185,94249.0,94248.0,0.06275128]
[1735743057382,0.16125185,94249.0,94248.0,0.06175128]
[1735743057582,0.16825185,94249.0,94248.0,0.06275128]
[1735743057994,0.16725185,94249.0,94248.0,0.06275128]
[1735743058395,0.16525185,94249.0,94248.0,0.06275128]
[1735743058589,0.16825185,94249.0,94248.0,0.06275128]
[1735743060503,0.16625185,94249.0,94248.0,0.06175128]
[1735743061088,0.16125185,94249.0,94248.0,0.06175128]
[1735743061392,0.16825185,94249.0,94248.0,0.06275128]
[1735743061589,0.11509685,94249.0,94248.0,0.06275128]
[1735743061793,0.10709685,94249.0,94248.0,0.06175128]
[1735743061995,0.11009685,94249.0,94248.0,0.06175128]
[1735743062303,0.11009685,94249.0,94248.0,1.56175128]
[1735743062902,0.11009685,94249.0,94248.0,0.06175128]
[1735743063805,0.10709685,94249.0,94248.0,0.06175128]
[1735743063994,0.11309685,94249.0,94248.0,0.06375128]
[1735743064505,0.10809685,94249.0,94248.0,0.06275128]
[1735743064799,0.10909685,94249.0,94248.0,0.06175128]
[1735743065194,0.11409685,94249.0,94248.0,0.06275128]
[1735743066205,0.11009685,94249.0,94248.0,0.06175128]
[1735743067206,0.10909685,94249.0,94248.0,0.00859828]
[1735743067507,0.11109685,94249.0,94243.0,0.3608]
[1735743067703,0.11109685,94249.0,94243.0,0.36961166]
[1735743067904,0.11209685,94249.0,94243.0,0.36961166]
[1735743068207,0.11109685,94249.0,94243.0,0.36961166]
[1735743068902,0.10709685,94249.0,94243.0,0.36961166]
[1735743069092,0.11009685,94249.0,94243.0,0.36961166]
[1735743071199,0.11109685,94249.0,94243.0,0.36961166]
[1735743072197,0.10709685,94249.0,94243.0,0.36961166]
[1735743072398,0.11009685,94249.0,94243.0,0.36961166]
[1735743073404,0.11009685,94249.0,94235.0,0.3608]
[1735743073405,0.3608,94245.0,94235.0,0.3608]
[1735743073611,0.3608,94245.0,94225.0,0.053167]
[1735743073612,0.053162,94236.0,94225.0,0.053167]
[1735743073905,0.0523,94244.0,94224.0,0.3608]
[1735743073906,0.053167,94225.0,94224.0,0.3608]
[1735743074599,0.15927905,94225.0,94224.0,0.3608]
[1735743075203,0.52007905,94225.0,94221.0,0.00931753]
[1735743075503,0.52007905,94225.0,94224.0,0.002]
[1735743076005,0.053173,94216.0,94204.0,0.0538]
[1735743076208,0.053173,94216.0,94214.0,0.00915564]
[1735743076399,0.053173,94216.0,94204.0,0.0538]
[1735743076709,0.1051295,94216.0,94215.0,0.053173]
[1735743077299,0.3608,94240.0,94215.0,0.053173]
[1735743077300,0.3608,94240.0,94232.0,0.053164]
[1735743077606,0.10613964,94238.0,94231.0,0.053164]
[1735743077804,0.10613964,94238.0,94236.0,0.3608]
[1735743078103,0.10413964,94238.0,94237.0,0.1078]
[1735743078500,0.053152,94254.0,94240.0,0.053158]
[1735743079207,0.1061098,94243.0,94240.0,0.053158]
[1735743079611,0.1061098,94243.0,94241.0,0.053158]
[1735743081603,0.1061098,94243.0,94237.0,0.11672882]
[1735743081801,0.1071098,94243.0,94237.0,0.11672882]
[1735743082205,0.1071098,94243.0,94237.0,0.16988882]
[1735743082411,0.1071098,94243.0,94237.0,0.11672882]
[1735743083702,0.1071098,94243.0,94237.0,0.16988882]
[1735743084106,0.1081098,94243.0,94237.0,0.16988882]
[1735743084307,0.1081098,94243.0,94237.0,0.11772882]
[1735743084813,0.1071098,94243.0,94237.0,0.11772882]
[1735743085014,0.1071098,94243.0,94241.0,0.053158]
[1735743085310,0.1061098,94243.0,94241.0,0.053158]
[1735743088314,0.1071098,94243.0,94241.0,0.053158]
[1735743089407,0.1061098,94243.0,94241.0,0.053158]
[1735743093009,0.1071098,94243.0,94241.0,0.053158]
[1735743093208,0.1071098,94243.0,94237.0,0.11672882]
[1735743093410,0.1071098,94243.0,94242.0,0.053158]
[1735743103426,0.1071098,94243.0,94237.0,0.11672882]
[1735743103427,0.053159,94241.0,94237.0,0.00892882]
[1735743103621,0.053159,94241.0,94236.0,0.413961]
[1735743104120,0.10611318,94240.0,94237.0,0.05316]
[1735743104320,0.10611318,94240.0,94236.0,0.3608]
[1735743104516,0.10611318,94240.0,94239.0,0.05316]
[1735743104713,0.001,94243.0,94240.0,0.053159]
[1735743104916,0.10611318,94242.0,94240.0,0.053159]
[1735743105326,0.002,94243.0,94240.0,0.053159]
[1735743105824,0.002,94243.0,94236.0,0.36995619]
[1735743106026,0.002,94243.0,94241.0,0.053158]
[1735743106216,0.10611036,94242.0,94241.0,0.053158]
[1735743108824,0.10911036,94242.0,94241.0,0.053158]
[1735743109231,0.003,94242.0,94241.0,0.053158]
[1735743109424,0.001,94242.0,94241.0,0.053158]
[1735743109631,0.11011036,94242.0,94241.0,0.053158]
[1735743111718,0.10911036,94242.0,94241.0,0.053158]
[1735743111930,0.11011036,94242.0,94241.0,0.053158]
[1735743112825,0.11111036,94242.0,94241.0,0.053158]
[1735743114332,0.10711036,94242.0,94241.0,0.053158]
[1735743114827,0.10611036,94242.0,94241.0,0.053158]
[1735743115234,0.053154,94249.0,94244.0,0.053157]
[1735743115430,0.10611036,94248.0,94244.0,0.053157]
[1735743115728,0.1086,94251.0,94236.0,0.42311719]
[1735743115934,0.1086,94251.0,94248.0,0.053154]
[1735743116427,0.10610529,94250.0,94248.0,0.053154]
[1735743116827,0.002,94249.0,94248.0,0.053154]
[1735743117426,0.10610192,94249.0,94248.0,0.053154]
[1735743117828,0.1126,94251.0,94248.0,0.053154]
[1735743118030,0.10610248,94249.0,94248.0,0.053154]
[1735743118429,0.1136,94251.0,94248.0,0.053154]
[1735743118643,0.10610248,94250.0,94248.0,0.053154]
[1735743118831,0.10610248,94250.0,94236.0,0.36995619]
[1735743119029,0.1126,94251.0,94236.0,0.36995619]
[1735743119227,0.11110135,94249.0,94248.0,0.053154]
[1735743119738,0.005,94249.0,94248.0,0.053154]
[1735743120033,0.11110135,94249.0,94248.0,0.053154]
[1735743120329,0.10710135,94249.0,94248.0,0.053154]
[1735743120929,0.11010135,94249.0,94248.0,0.053154]
[1735743122042,0.11110135,94249.0,94248.0,0.053154]
[1735743123038,0.10710135,94249.0,94248.0,0.053154]
[1735743123336,0.11110135,94249.0,94248.0,0.053154]
[1735743124239,0.10710135,94249.0,94248.0,0.053154]
[1735743124430,0.11110135,94249.0,94248.0,0.06270985]
[1735743126940,0.16425535,94249.0,94248.0,0.06270985]
[1735743127333,0.52505535,94249.0,94248.0,0.06270985]
[1735743127533,0.52505535,94249.0,94222.0,0.24461962]
[1735743127534,0.47190135,94249.0,94226.0,0.053167]
[1735743127735,0.3608,94234.0,94222.0,0.19031962]
[1735743127936,0.053165,94230.0,94222.0,0.19031962]
[1735743128243,0.053165,94230.0,94228.0,0.053165]
[1735743128438,0.10611486,94229.0,94228.0,0.053165]
[1735743130533,0.053166,94227.0,94226.0,0.001]
[1735743130730,0.052166,94227.0,94221.0,0.06276364]
[1735743131236,0.10612725,94226.0,94221.0,0.06276364]
[1735743131439,0.10612725,94226.0,94225.0,0.053167]
[1735743131845,0.3608,94237.0,94226.0,0.054166]
[1735743132047,0.053164,94231.0,94226.0,0.054166]
[1735743132641,0.053165,94230.0,94226.0,0.054166]
[1735743133147,0.15929338,94230.0,94226.0,0.055166]
[1735743133557,0.053165,94230.0,94226.0,0.055166]
[1735743133849,0.10612556,94229.0,94226.0,0.055166]
[1735743134151,0.10612556,94229.0,94226.0,0.054166]
[1735743135151,0.15929156,94229.0,94226.0,0.055166]
[1735743135345,0.10612556,94229.0,94226.0,0.002]
[1735743135551,0.053166,94227.0,94226.0,0.002]
[1735743136046,0.15929213,94227.0,94226.0,0.002]
[1735743136752,0.15929213,94227.0,94202.0,0.36239231]
[1735743136954,0.053175,94212.0,94208.0,0.053177]
[1735743137951,0.10612725,94211.0,94208.0,0.053177]
[1735743138154,0.10512725,94211.0,94208.0,0.053177]
[1735743138853,0.053177,94209.0,94202.0,0.06460483]
[1735743139151,0.3608,94217.0,94202.0,0.06460483]
[1735743139152,0.05318,94203.0,94202.0,0.01142483]
[1735743139353,0.05318,94203.0,94202.0,0.01059231]
[1735743139557,0.04918,94203.0,94202.0,0.01059231]
[1735743139853,0.0577,94208.0,94194.0,0.3608]
[1735743140156,0.053184,94195.0,94194.0,0.3608]
[1735743140646,0.15033829,94195.0,94194.0,0.3608]
[1735743141349,0.14533829,94195.0,94194.0,0.3608]
[1735743141871,0.14533829,94195.0,94193.0,0.00958707]
[1735743142052,0.14533829,94195.0,94194.0,0.003]
[1735743142257,0.14533829,94195.0,94194.0,0.004]
[1735743142864,0.14533829,94195.0,94194.0,0.003]
[1735743143061,0.14633829,94195.0,94194.0,0.004]
[1735743144457,0.14633829,94195.0,94194.0,0.001]
[1735743145451,0.14633829,94195.0,94194.0,0.002]
[1735743153556,0.10715429,94195.0,94194.0,0.055185]
[1735743153759,0.10715429,94195.0,94194.0,0.415985]
[1735743154165,0.00159266,94214.0,94194.0,0.3628]
[1735743154377,0.00159266,94214.0,94208.0,0.053177]
[1735743154560,0.00159266,94214.0,94213.0,0.053174]
[1735743154769,0.00159266,94214.0,94213.0,0.413974]
[1735743154955,0.10775597,94214.0,94213.0,0.413974]
[1735743155360,0.10775597,94214.0,94213.0,0.053174]
[1735743155770,0.10975597,94214.0,94213.0,0.053174]
[1735743156269,0.11175597,94214.0,94213.0,0.053174]
[1735743156972,0.11375597,94214.0,94213.0,0.053174]
[1735743159167,0.11375597,94214.0,94213.0,0.06277324]
[1735743159673,0.11375597,94214.0,94210.0,0.3608]
[1735743159861,0.11375597,94214.0,94200.0,0.3608]
[1735743160059,0.053177,94209.0,94204.0,0.053179]
[1735743160763,0.10614359,94208.0,94204.0,0.053179]
[1735743160965,0.10614359,94208.0,94205.0,0.053178]
[1735743161280,0.10614359,94208.0,94206.0,0.053178]
[1735743161660,0.053177,94209.0,94207.0,0.053177]
[1735743161865,0.10614978,94208.0,94207.0,0.053177]
[1735743163575,0.10714978,94208.0,94207.0,0.053177]
[1735743168779,0.16032678,94208.0,94207.0,0.053177]
[1735743175784,0.16032678,94208.0,94200.0,0.3608]
[1735743175785,0.053181,94201.0,94200.0,0.3608]
[1735743175974,0.053181,94201.0,94200.0,0.37068362]
[1735743176777,0.15933754,94201.0,94200.0,0.37068362]
[1735743176977,0.15933754,94201.0,94200.0,0.37168362]
[1735743177780,0.15933754,94201.0,94200.0,0.37268362]
[1735743191391,0.15933754,94201.0,94200.0,0.01188362]
[1735743192994,0.15933754,94201.0,94200.0,0.06506562]
[1735743193893,0.15933754,94201.0,94200.0,0.01188362]
[1735743200513,0.17635182,94201.0,94200.0,0.01188362]
[1735743200815,0.17635182,94201.0,94200.0,0.06506562]
[1735743206316,0.12317082,94201.0,94200.0,0.06506562]
[1735743207415,0.12317082,94201.0,94200.0,0.42586562]
[1735743207613,0.10615654,94201.0,94200.0,0.42586562]
[1735743208119,0.053176,94210.0,94208.0,0.053177]
[1735743208306,0.053176,94210.0,94201.0,0.0547]
[1735743208518,0.053176,94210.0,94209.0,0.053177]
[1735743209409,0.1593224,94210.0,94209.0,0.053177]
[1735743209605,0.35404108,94215.0,94201.0,0.0557]
[1735743209811,0.053176,94211.0,94210.0,0.053175]
[1735743211013,0.15932128,94211.0,94210.0,0.053175]
[1735743211219,0.16032128,94211.0,94210.0,0.053175]
[1735743211517,0.05318,94207.0,94206.0,0.053178]